{"text_format":"1","workbook":"xlsx","n_sheets":3,"sheets":["БД","Произвольное_расположение","Упорядоченное_расположение"],"not_rendered":{"charts":0,"images":0,"macros":1,"external_links":0,"defined_names":4,"comments":0,"pivot_tables":0},"unopened":[],"bounds":{"document_bytes":16777216,"sheet_cells":100000,"rows_first":2000,"rows_last":500,"rows_between":2000,"halvings":0,"cell_chars":16384,"cell_head_chars":4096},"cells_cut":0,"cells_raw":0,"read":"whole","date_system":"1900"}

{"sheet":"БД","index":0,"n_rows":81,"n_cols":4,"rows_kept":81,"cut":false,"hidden":false,"merged":[]}
[]
[null,"Код","Холдинг","Организация"]
[null,200,"Холдинг 1","Организация 1"]
[null,2202,"Холдинг 1","Организация 2"]
[null,2202,"Холдинг 1","Организация 3"]
[null,2203,"Холдинг 1","Организация 4"]
[null,2204,"Холдинг 1","Организация 5"]
[null,2205,"Холдинг 1","Организация 6"]
[null,2206,"Холдинг 1","Организация 7"]
[null,2207,"Холдинг 1","Организация 8"]
[null,2208,"Холдинг 1","Организация 9"]
[null,2209,"Холдинг 1","Организация 10"]
[null,2220,"Холдинг 1","Организация 11"]
[null,2222,"Холдинг 1","Организация 12"]
[null,2223,"Холдинг 1","Организация 13"]
[null,2224,"Холдинг 1","Организация 14"]
[null,2226,"Холдинг 1","Организация 15"]
[null,2227,"Холдинг 1","Организация 16"]
[null,2222,"Холдинг 1","Организация 17"]
[null,2222,"Холдинг 1","Организация 18"]
[null,2223,"Холдинг 1","Организация 19"]
[null,2229,"Холдинг 1","Организация 20"]
[null,2230,"Холдинг 1","Организация 21"]
[null,2232,"Холдинг 1","Организация 22"]
[null,2233,"Холдинг 1","Организация 23"]
[null,2234,"Холдинг 1","Организация 24"]
[null,2235,"Холдинг 1","Организация 25"]
[null,2237,"Холдинг 1","Организация 26"]
[null,2238,"Холдинг 1","Организация 27"]
[null,2239,"Холдинг 1","Организация 28"]
[null,2240,"Холдинг 1","Организация 29"]
[null,2242,"Холдинг 1","Организация 30"]
[null,2245,"Холдинг 1","Организация 31"]
[null,2246,"Холдинг 1","Организация 32"]
[null,2248,"Холдинг 1","Организация 33"]
[null,2249,"Холдинг 1","Организация 34"]
[null,2252,"Холдинг 1","Организация 35"]
[null,2252,"Холдинг 1","Организация 36"]
[null,2253,"Холдинг 1","Организация 37"]
[null,2254,"Холдинг 1","Организация 38"]
[null,2255,"Холдинг 1","Организация 39"]
[null,2256,"Холдинг 1","Организация 40"]
[null,2266,"Холдинг 1","Организация 41"]
[null,2269,"Холдинг 1","Организация 42"]
[null,2270,"Холдинг 1","Организация 43"]
[null,2272,"Холдинг 1","Организация 44"]
[null,2274,"Холдинг 1","Организация 45"]
[null,2276,"Холдинг 1","Организация 46"]
[null,2277,"Холдинг 1","Организация 47"]
[null,2278,"Холдинг 1","Организация 48"]
[null,2279,"Холдинг 1","Организация 49"]
[null,2280,"Холдинг 1","Организация 50"]
[null,2283,"Холдинг 1","Организация 51"]
[null,2284,"Холдинг 1","Организация 52"]
[null,2297,"Холдинг 1","Организация 53"]
[null,2299,"Холдинг 1","Организация 54"]
[null,9200,"Холдинг 2","Организация 55"]
[null,9202,"Холдинг 2","Организация 56"]
[null,9202,"Холдинг 2","Организация 57"]
[null,9203,"Холдинг 2","Организация 58"]
[null,9204,"Холдинг 2","Организация 59"]
[null,9205,"Холдинг 2","Организация 60"]
[null,9206,"Холдинг 2","Организация 61"]
[null,9207,"Холдинг 2","Организация 62"]
[null,9208,"Холдинг 2","Организация 63"]
[null,9209,"Холдинг 2","Организация 64"]
[null,9220,"Холдинг 2","Организация 65"]
[null,9222,"Холдинг 2","Организация 66"]
[null,"0200","Холдинг 3","Организация 67"]
[null,202,"Холдинг 3","Организация 68"]
[null,"0202","Холдинг 3","Организация 69"]
[null,"0203","Холдинг 3","Организация 70"]
[null,"0204","Холдинг 3","Организация 71"]
[null,"0205","Холдинг 3","Организация 72"]
[null,"0206","Холдинг 3","Организация 73"]
[null,"0207","Холдинг 3","Организация 74"]
[null,"0208","Холдинг 3","Организация 75"]
[null,"0209","Холдинг 3","Организация 76"]
[null,220,"Холдинг 3","Организация 77"]
[null,222,"Холдинг 3","Организация 78"]
[null,224,"Холдинг 3","Организация 79"]

{"sheet":"Произвольное_расположение","index":1,"n_rows":61,"n_cols":13,"rows_kept":61,"cut":false,"hidden":false,"merged":[]}
[null,null,null,null,null,null,"Выберите холдинг",null,null,null,null,null,"Холдинг 1"]
[null,"Код ","Организация","Сроки\nпредоставления","Сумма",null,"Холдинг 3",null,null,null,null,null,"Холдинг 2"]
[null,{"$f":"IFERROR(INDEX(База,SMALL(IF(INDEX(База,,2)=$G$2,ROW(База)),ROW(B1))-ROW(INDEX(База,1,))+1,COUNTA($B2:B2)),\"\")","v":"0200"},{"$f":"IFERROR(INDEX(База,SMALL(IF(INDEX(База,,2)=$G$2,ROW(База)),ROW(C1))-ROW(INDEX(База,1,))+1,COUNTA($B2:C2)),\"\")","v":"Холдинг 3"},{"$f":"IFERROR(INDEX(База,SMALL(IF(INDEX(База,,2)=$G$2,ROW(База)),ROW(D1))-ROW(INDEX(База,1,))+1,COUNTA($B2:D2)),\"\")","v":"Организация 67"},43434,null,null,null,null,null,null,null,"Холдинг 3"]
[null,{"$f":"IFERROR(INDEX(База,SMALL(IF(INDEX(База,,2)=$G$2,ROW(База)),ROW(B2))-ROW(INDEX(База,1,))+1,COUNTA($B3:B3)),\"\")","v":202},{"$f":"IFERROR(INDEX(База,SMALL(IF(INDEX(База,,2)=$G$2,ROW(База)),ROW(C2))-ROW(INDEX(База,1,))+1,COUNTA($B3:C3)),\"\")","v":"Холдинг 3"},{"$f":"IFERROR(INDEX(База,SMALL(IF(INDEX(База,,2)=$G$2,ROW(База)),ROW(D2))-ROW(INDEX(База,1,))+1,COUNTA($B3:D3)),\"\")","v":"Организация 68"},534]
[null,{"$f":"IFERROR(INDEX(База,SMALL(IF(INDEX(База,,2)=$G$2,ROW(База)),ROW(B3))-ROW(INDEX(База,1,))+1,COUNTA($B4:B4)),\"\")","v":"0202"},{"$f":"IFERROR(INDEX(База,SMALL(IF(INDEX(База,,2)=$G$2,ROW(База)),ROW(C3))-ROW(INDEX(База,1,))+1,COUNTA($B4:C4)),\"\")","v":"Холдинг 3"},{"$f":"IFERROR(INDEX(База,SMALL(IF(INDEX(База,,2)=$G$2,ROW(База)),ROW(D3))-ROW(INDEX(База,1,))+1,COUNTA($B4:D4)),\"\")","v":"Организация 69"},453]
[null,{"$f":"IFERROR(INDEX(База,SMALL(IF(INDEX(База,,2)=$G$2,ROW(База)),ROW(B4))-ROW(INDEX(База,1,))+1,COUNTA($B5:B5)),\"\")","v":"0203"},{"$f":"IFERROR(INDEX(База,SMALL(IF(INDEX(База,,2)=$G$2,ROW(База)),ROW(C4))-ROW(INDEX(База,1,))+1,COUNTA($B5:C5)),\"\")","v":"Холдинг 3"},{"$f":"IFERROR(INDEX(База,SMALL(IF(INDEX(База,,2)=$G$2,ROW(База)),ROW(D4))-ROW(INDEX(База,1,))+1,COUNTA($B5:D5)),\"\")","v":"Организация 70"},44432]
[null,{"$f":"IFERROR(INDEX(База,SMALL(IF(INDEX(База,,2)=$G$2,ROW(База)),ROW(B5))-ROW(INDEX(База,1,))+1,COUNTA($B6:B6)),\"\")","v":"0204"},{"$f":"IFERROR(INDEX(База,SMALL(IF(INDEX(База,,2)=$G$2,ROW(База)),ROW(C5))-ROW(INDEX(База,1,))+1,COUNTA($B6:C6)),\"\")","v":"Холдинг 3"},{"$f":"IFERROR(INDEX(База,SMALL(IF(INDEX(База,,2)=$G$2,ROW(База)),ROW(D5))-ROW(INDEX(База,1,))+1,COUNTA($B6:D6)),\"\")","v":"Организация 71"},43345]
[null,{"$f":"IFERROR(INDEX(База,SMALL(IF(INDEX(База,,2)=$G$2,ROW(База)),ROW(B6))-ROW(INDEX(База,1,))+1,COUNTA($B7:B7)),\"\")","v":"0205"},{"$f":"IFERROR(INDEX(База,SMALL(IF(INDEX(База,,2)=$G$2,ROW(База)),ROW(C6))-ROW(INDEX(База,1,))+1,COUNTA($B7:C7)),\"\")","v":"Холдинг 3"},{"$f":"IFERROR(INDEX(База,SMALL(IF(INDEX(База,,2)=$G$2,ROW(База)),ROW(D6))-ROW(INDEX(База,1,))+1,COUNTA($B7:D7)),\"\")","v":"Организация 72"},4343]
[null,{"$f":"IFERROR(INDEX(База,SMALL(IF(INDEX(База,,2)=$G$2,ROW(База)),ROW(B7))-ROW(INDEX(База,1,))+1,COUNTA($B8:B8)),\"\")","v":"0206"},{"$f":"IFERROR(INDEX(База,SMALL(IF(INDEX(База,,2)=$G$2,ROW(База)),ROW(C7))-ROW(INDEX(База,1,))+1,COUNTA($B8:C8)),\"\")","v":"Холдинг 3"},{"$f":"IFERROR(INDEX(База,SMALL(IF(INDEX(База,,2)=$G$2,ROW(База)),ROW(D7))-ROW(INDEX(База,1,))+1,COUNTA($B8:D8)),\"\")","v":"Организация 73"},5454]
[null,{"$f":"IFERROR(INDEX(База,SMALL(IF(INDEX(База,,2)=$G$2,ROW(База)),ROW(B8))-ROW(INDEX(База,1,))+1,COUNTA($B9:B9)),\"\")","v":"0207"},{"$f":"IFERROR(INDEX(База,SMALL(IF(INDEX(База,,2)=$G$2,ROW(База)),ROW(C8))-ROW(INDEX(База,1,))+1,COUNTA($B9:C9)),\"\")","v":"Холдинг 3"},{"$f":"IFERROR(INDEX(База,SMALL(IF(INDEX(База,,2)=$G$2,ROW(База)),ROW(D8))-ROW(INDEX(База,1,))+1,COUNTA($B9:D9)),\"\")","v":"Организация 74"},43434]
[null,{"$f":"IFERROR(INDEX(База,SMALL(IF(INDEX(База,,2)=$G$2,ROW(База)),ROW(B9))-ROW(INDEX(База,1,))+1,COUNTA($B10:B10)),\"\")","v":"0208"},{"$f":"IFERROR(INDEX(База,SMALL(IF(INDEX(База,,2)=$G$2,ROW(База)),ROW(C9))-ROW(INDEX(База,1,))+1,COUNTA($B10:C10)),\"\")","v":"Холдинг 3"},{"$f":"IFERROR(INDEX(База,SMALL(IF(INDEX(База,,2)=$G$2,ROW(База)),ROW(D9))-ROW(INDEX(База,1,))+1,COUNTA($B10:D10)),\"\")","v":"Организация 75"},6565]
[null,{"$f":"IFERROR(INDEX(База,SMALL(IF(INDEX(База,,2)=$G$2,ROW(База)),ROW(B10))-ROW(INDEX(База,1,))+1,COUNTA($B11:B11)),\"\")","v":"0209"},{"$f":"IFERROR(INDEX(База,SMALL(IF(INDEX(База,,2)=$G$2,ROW(База)),ROW(C10))-ROW(INDEX(База,1,))+1,COUNTA($B11:C11)),\"\")","v":"Холдинг 3"},{"$f":"IFERROR(INDEX(База,SMALL(IF(INDEX(База,,2)=$G$2,ROW(База)),ROW(D10))-ROW(INDEX(База,1,))+1,COUNTA($B11:D11)),\"\")","v":"Организация 76"},767]
[null,{"$f":"IFERROR(INDEX(База,SMALL(IF(INDEX(База,,2)=$G$2,ROW(База)),ROW(B11))-ROW(INDEX(База,1,))+1,COUNTA($B12:B12)),\"\")","v":220},{"$f":"IFERROR(INDEX(База,SMALL(IF(INDEX(База,,2)=$G$2,ROW(База)),ROW(C11))-ROW(INDEX(База,1,))+1,COUNTA($B12:C12)),\"\")","v":"Холдинг 3"},{"$f":"IFERROR(INDEX(База,SMALL(IF(INDEX(База,,2)=$G$2,ROW(База)),ROW(D11))-ROW(INDEX(База,1,))+1,COUNTA($B12:D12)),\"\")","v":"Организация 77"},346686]
[null,{"$f":"IFERROR(INDEX(База,SMALL(IF(INDEX(База,,2)=$G$2,ROW(База)),ROW(B12))-ROW(INDEX(База,1,))+1,COUNTA($B13:B13)),\"\")","v":222},{"$f":"IFERROR(INDEX(База,SMALL(IF(INDEX(База,,2)=$G$2,ROW(База)),ROW(C12))-ROW(INDEX(База,1,))+1,COUNTA($B13:C13)),\"\")","v":"Холдинг 3"},{"$f":"IFERROR(INDEX(База,SMALL(IF(INDEX(База,,2)=$G$2,ROW(База)),ROW(D12))-ROW(INDEX(База,1,))+1,COUNTA($B13:D13)),\"\")","v":"Организация 78"},564]
[null,{"$f":"IFERROR(INDEX(База,SMALL(IF(INDEX(База,,2)=$G$2,ROW(База)),ROW(B13))-ROW(INDEX(База,1,))+1,COUNTA($B14:B14)),\"\")","v":224},{"$f":"IFERROR(INDEX(База,SMALL(IF(INDEX(База,,2)=$G$2,ROW(База)),ROW(C13))-ROW(INDEX(База,1,))+1,COUNTA($B14:C14)),\"\")","v":"Холдинг 3"},{"$f":"IFERROR(INDEX(База,SMALL(IF(INDEX(База,,2)=$G$2,ROW(База)),ROW(D13))-ROW(INDEX(База,1,))+1,COUNTA($B14:D14)),\"\")","v":"Организация 79"},75656]
[null,{"$f":"IFERROR(INDEX(База,SMALL(IF(INDEX(База,,2)=$G$2,ROW(База)),ROW(B14))-ROW(INDEX(База,1,))+1,COUNTA($B15:B15)),\"\")","v":""},{"$f":"IFERROR(INDEX(База,SMALL(IF(INDEX(База,,2)=$G$2,ROW(База)),ROW(C14))-ROW(INDEX(База,1,))+1,COUNTA($B15:C15)),\"\")","v":""},{"$f":"IFERROR(INDEX(База,SMALL(IF(INDEX(База,,2)=$G$2,ROW(База)),ROW(D14))-ROW(INDEX(База,1,))+1,COUNTA($B15:D15)),\"\")","v":""}]
[null,{"$f":"IFERROR(INDEX(База,SMALL(IF(INDEX(База,,2)=$G$2,ROW(База)),ROW(B15))-ROW(INDEX(База,1,))+1,COUNTA($B16:B16)),\"\")","v":""},{"$f":"IFERROR(INDEX(База,SMALL(IF(INDEX(База,,2)=$G$2,ROW(База)),ROW(C15))-ROW(INDEX(База,1,))+1,COUNTA($B16:C16)),\"\")","v":""},{"$f":"IFERROR(INDEX(База,SMALL(IF(INDEX(База,,2)=$G$2,ROW(База)),ROW(D15))-ROW(INDEX(База,1,))+1,COUNTA($B16:D16)),\"\")","v":""}]
[null,{"$f":"IFERROR(INDEX(База,SMALL(IF(INDEX(База,,2)=$G$2,ROW(База)),ROW(B16))-ROW(INDEX(База,1,))+1,COUNTA($B17:B17)),\"\")","v":""},{"$f":"IFERROR(INDEX(База,SMALL(IF(INDEX(База,,2)=$G$2,ROW(База)),ROW(C16))-ROW(INDEX(База,1,))+1,COUNTA($B17:C17)),\"\")","v":""},{"$f":"IFERROR(INDEX(База,SMALL(IF(INDEX(База,,2)=$G$2,ROW(База)),ROW(D16))-ROW(INDEX(База,1,))+1,COUNTA($B17:D17)),\"\")","v":""}]
[null,{"$f":"IFERROR(INDEX(База,SMALL(IF(INDEX(База,,2)=$G$2,ROW(База)),ROW(B17))-ROW(INDEX(База,1,))+1,COUNTA($B18:B18)),\"\")","v":""},{"$f":"IFERROR(INDEX(База,SMALL(IF(INDEX(База,,2)=$G$2,ROW(База)),ROW(C17))-ROW(INDEX(База,1,))+1,COUNTA($B18:C18)),\"\")","v":""},{"$f":"IFERROR(INDEX(База,SMALL(IF(INDEX(База,,2)=$G$2,ROW(База)),ROW(D17))-ROW(INDEX(База,1,))+1,COUNTA($B18:D18)),\"\")","v":""}]
[null,{"$f":"IFERROR(INDEX(База,SMALL(IF(INDEX(База,,2)=$G$2,ROW(База)),ROW(B18))-ROW(INDEX(База,1,))+1,COUNTA($B19:B19)),\"\")","v":""},{"$f":"IFERROR(INDEX(База,SMALL(IF(INDEX(База,,2)=$G$2,ROW(База)),ROW(C18))-ROW(INDEX(База,1,))+1,COUNTA($B19:C19)),\"\")","v":""},{"$f":"IFERROR(INDEX(База,SMALL(IF(INDEX(База,,2)=$G$2,ROW(База)),ROW(D18))-ROW(INDEX(База,1,))+1,COUNTA($B19:D19)),\"\")","v":""}]
[null,{"$f":"IFERROR(INDEX(База,SMALL(IF(INDEX(База,,2)=$G$2,ROW(База)),ROW(B19))-ROW(INDEX(База,1,))+1,COUNTA($B20:B20)),\"\")","v":""},{"$f":"IFERROR(INDEX(База,SMALL(IF(INDEX(База,,2)=$G$2,ROW(База)),ROW(C19))-ROW(INDEX(База,1,))+1,COUNTA($B20:C20)),\"\")","v":""},{"$f":"IFERROR(INDEX(База,SMALL(IF(INDEX(База,,2)=$G$2,ROW(База)),ROW(D19))-ROW(INDEX(База,1,))+1,COUNTA($B20:D20)),\"\")","v":""}]
[null,{"$f":"IFERROR(INDEX(База,SMALL(IF(INDEX(База,,2)=$G$2,ROW(База)),ROW(B20))-ROW(INDEX(База,1,))+1,COUNTA($B21:B21)),\"\")","v":""},{"$f":"IFERROR(INDEX(База,SMALL(IF(INDEX(База,,2)=$G$2,ROW(База)),ROW(C20))-ROW(INDEX(База,1,))+1,COUNTA($B21:C21)),\"\")","v":""},{"$f":"IFERROR(INDEX(База,SMALL(IF(INDEX(База,,2)=$G$2,ROW(База)),ROW(D20))-ROW(INDEX(База,1,))+1,COUNTA($B21:D21)),\"\")","v":""}]
[null,{"$f":"IFERROR(INDEX(База,SMALL(IF(INDEX(База,,2)=$G$2,ROW(База)),ROW(B21))-ROW(INDEX(База,1,))+1,COUNTA($B22:B22)),\"\")","v":""},{"$f":"IFERROR(INDEX(База,SMALL(IF(INDEX(База,,2)=$G$2,ROW(База)),ROW(C21))-ROW(INDEX(База,1,))+1,COUNTA($B22:C22)),\"\")","v":""},{"$f":"IFERROR(INDEX(База,SMALL(IF(INDEX(База,,2)=$G$2,ROW(База)),ROW(D21))-ROW(INDEX(База,1,))+1,COUNTA($B22:D22)),\"\")","v":""}]
[null,{"$f":"IFERROR(INDEX(База,SMALL(IF(INDEX(База,,2)=$G$2,ROW(База)),ROW(B22))-ROW(INDEX(База,1,))+1,COUNTA($B23:B23)),\"\")","v":""},{"$f":"IFERROR(INDEX(База,SMALL(IF(INDEX(База,,2)=$G$2,ROW(База)),ROW(C22))-ROW(INDEX(База,1,))+1,COUNTA($B23:C23)),\"\")","v":""},{"$f":"IFERROR(INDEX(База,SMALL(IF(INDEX(База,,2)=$G$2,ROW(База)),ROW(D22))-ROW(INDEX(База,1,))+1,COUNTA($B23:D23)),\"\")","v":""}]
[null,{"$f":"IFERROR(INDEX(База,SMALL(IF(INDEX(База,,2)=$G$2,ROW(База)),ROW(B23))-ROW(INDEX(База,1,))+1,COUNTA($B24:B24)),\"\")","v":""},{"$f":"IFERROR(INDEX(База,SMALL(IF(INDEX(База,,2)=$G$2,ROW(База)),ROW(C23))-ROW(INDEX(База,1,))+1,COUNTA($B24:C24)),\"\")","v":""},{"$f":"IFERROR(INDEX(База,SMALL(IF(INDEX(База,,2)=$G$2,ROW(База)),ROW(D23))-ROW(INDEX(База,1,))+1,COUNTA($B24:D24)),\"\")","v":""}]
[null,{"$f":"IFERROR(INDEX(База,SMALL(IF(INDEX(База,,2)=$G$2,ROW(База)),ROW(B24))-ROW(INDEX(База,1,))+1,COUNTA($B25:B25)),\"\")","v":""},{"$f":"IFERROR(INDEX(База,SMALL(IF(INDEX(База,,2)=$G$2,ROW(База)),ROW(C24))-ROW(INDEX(База,1,))+1,COUNTA($B25:C25)),\"\")","v":""},{"$f":"IFERROR(INDEX(База,SMALL(IF(INDEX(База,,2)=$G$2,ROW(База)),ROW(D24))-ROW(INDEX(База,1,))+1,COUNTA($B25:D25)),\"\")","v":""}]
[null,{"$f":"IFERROR(INDEX(База,SMALL(IF(INDEX(База,,2)=$G$2,ROW(База)),ROW(B25))-ROW(INDEX(База,1,))+1,COUNTA($B26:B26)),\"\")","v":""},{"$f":"IFERROR(INDEX(База,SMALL(IF(INDEX(База,,2)=$G$2,ROW(База)),ROW(C25))-ROW(INDEX(База,1,))+1,COUNTA($B26:C26)),\"\")","v":""},{"$f":"IFERROR(INDEX(База,SMALL(IF(INDEX(База,,2)=$G$2,ROW(База)),ROW(D25))-ROW(INDEX(База,1,))+1,COUNTA($B26:D26)),\"\")","v":""}]
[null,{"$f":"IFERROR(INDEX(База,SMALL(IF(INDEX(База,,2)=$G$2,ROW(База)),ROW(B26))-ROW(INDEX(База,1,))+1,COUNTA($B27:B27)),\"\")","v":""},{"$f":"IFERROR(INDEX(База,SMALL(IF(INDEX(База,,2)=$G$2,ROW(База)),ROW(C26))-ROW(INDEX(База,1,))+1,COUNTA($B27:C27)),\"\")","v":""},{"$f":"IFERROR(INDEX(База,SMALL(IF(INDEX(База,,2)=$G$2,ROW(База)),ROW(D26))-ROW(INDEX(База,1,))+1,COUNTA($B27:D27)),\"\")","v":""}]
[null,{"$f":"IFERROR(INDEX(База,SMALL(IF(INDEX(База,,2)=$G$2,ROW(База)),ROW(B27))-ROW(INDEX(База,1,))+1,COUNTA($B28:B28)),\"\")","v":""},{"$f":"IFERROR(INDEX(База,SMALL(IF(INDEX(База,,2)=$G$2,ROW(База)),ROW(C27))-ROW(INDEX(База,1,))+1,COUNTA($B28:C28)),\"\")","v":""},{"$f":"IFERROR(INDEX(База,SMALL(IF(INDEX(База,,2)=$G$2,ROW(База)),ROW(D27))-ROW(INDEX(База,1,))+1,COUNTA($B28:D28)),\"\")","v":""}]
[null,{"$f":"IFERROR(INDEX(База,SMALL(IF(INDEX(База,,2)=$G$2,ROW(База)),ROW(B28))-ROW(INDEX(База,1,))+1,COUNTA($B29:B29)),\"\")","v":""},{"$f":"IFERROR(INDEX(База,SMALL(IF(INDEX(База,,2)=$G$2,ROW(База)),ROW(C28))-ROW(INDEX(База,1,))+1,COUNTA($B29:C29)),\"\")","v":""},{"$f":"IFERROR(INDEX(База,SMALL(IF(INDEX(База,,2)=$G$2,ROW(База)),ROW(D28))-ROW(INDEX(База,1,))+1,COUNTA($B29:D29)),\"\")","v":""}]
[null,{"$f":"IFERROR(INDEX(База,SMALL(IF(INDEX(База,,2)=$G$2,ROW(База)),ROW(B29))-ROW(INDEX(База,1,))+1,COUNTA($B30:B30)),\"\")","v":""},{"$f":"IFERROR(INDEX(База,SMALL(IF(INDEX(База,,2)=$G$2,ROW(База)),ROW(C29))-ROW(INDEX(База,1,))+1,COUNTA($B30:C30)),\"\")","v":""},{"$f":"IFERROR(INDEX(База,SMALL(IF(INDEX(База,,2)=$G$2,ROW(База)),ROW(D29))-ROW(INDEX(База,1,))+1,COUNTA($B30:D30)),\"\")","v":""}]
[null,{"$f":"IFERROR(INDEX(База,SMALL(IF(INDEX(База,,2)=$G$2,ROW(База)),ROW(B30))-ROW(INDEX(База,1,))+1,COUNTA($B31:B31)),\"\")","v":""},{"$f":"IFERROR(INDEX(База,SMALL(IF(INDEX(База,,2)=$G$2,ROW(База)),ROW(C30))-ROW(INDEX(База,1,))+1,COUNTA($B31:C31)),\"\")","v":""},{"$f":"IFERROR(INDEX(База,SMALL(IF(INDEX(База,,2)=$G$2,ROW(База)),ROW(D30))-ROW(INDEX(База,1,))+1,COUNTA($B31:D31)),\"\")","v":""}]
[null,{"$f":"IFERROR(INDEX(База,SMALL(IF(INDEX(База,,2)=$G$2,ROW(База)),ROW(B31))-ROW(INDEX(База,1,))+1,COUNTA($B32:B32)),\"\")","v":""},{"$f":"IFERROR(INDEX(База,SMALL(IF(INDEX(База,,2)=$G$2,ROW(База)),ROW(C31))-ROW(INDEX(База,1,))+1,COUNTA($B32:C32)),\"\")","v":""},{"$f":"IFERROR(INDEX(База,SMALL(IF(INDEX(База,,2)=$G$2,ROW(База)),ROW(D31))-ROW(INDEX(База,1,))+1,COUNTA($B32:D32)),\"\")","v":""}]
[null,{"$f":"IFERROR(INDEX(База,SMALL(IF(INDEX(База,,2)=$G$2,ROW(База)),ROW(B32))-ROW(INDEX(База,1,))+1,COUNTA($B33:B33)),\"\")","v":""},{"$f":"IFERROR(INDEX(База,SMALL(IF(INDEX(База,,2)=$G$2,ROW(База)),ROW(C32))-ROW(INDEX(База,1,))+1,COUNTA($B33:C33)),\"\")","v":""},{"$f":"IFERROR(INDEX(База,SMALL(IF(INDEX(База,,2)=$G$2,ROW(База)),ROW(D32))-ROW(INDEX(База,1,))+1,COUNTA($B33:D33)),\"\")","v":""}]
[null,{"$f":"IFERROR(INDEX(База,SMALL(IF(INDEX(База,,2)=$G$2,ROW(База)),ROW(B33))-ROW(INDEX(База,1,))+1,COUNTA($B34:B34)),\"\")","v":""},{"$f":"IFERROR(INDEX(База,SMALL(IF(INDEX(База,,2)=$G$2,ROW(База)),ROW(C33))-ROW(INDEX(База,1,))+1,COUNTA($B34:C34)),\"\")","v":""},{"$f":"IFERROR(INDEX(База,SMALL(IF(INDEX(База,,2)=$G$2,ROW(База)),ROW(D33))-ROW(INDEX(База,1,))+1,COUNTA($B34:D34)),\"\")","v":""}]
[null,{"$f":"IFERROR(INDEX(База,SMALL(IF(INDEX(База,,2)=$G$2,ROW(База)),ROW(B34))-ROW(INDEX(База,1,))+1,COUNTA($B35:B35)),\"\")","v":""},{"$f":"IFERROR(INDEX(База,SMALL(IF(INDEX(База,,2)=$G$2,ROW(База)),ROW(C34))-ROW(INDEX(База,1,))+1,COUNTA($B35:C35)),\"\")","v":""},{"$f":"IFERROR(INDEX(База,SMALL(IF(INDEX(База,,2)=$G$2,ROW(База)),ROW(D34))-ROW(INDEX(База,1,))+1,COUNTA($B35:D35)),\"\")","v":""}]
[null,{"$f":"IFERROR(INDEX(База,SMALL(IF(INDEX(База,,2)=$G$2,ROW(База)),ROW(B35))-ROW(INDEX(База,1,))+1,COUNTA($B36:B36)),\"\")","v":""},{"$f":"IFERROR(INDEX(База,SMALL(IF(INDEX(База,,2)=$G$2,ROW(База)),ROW(C35))-ROW(INDEX(База,1,))+1,COUNTA($B36:C36)),\"\")","v":""},{"$f":"IFERROR(INDEX(База,SMALL(IF(INDEX(База,,2)=$G$2,ROW(База)),ROW(D35))-ROW(INDEX(База,1,))+1,COUNTA($B36:D36)),\"\")","v":""}]
[null,{"$f":"IFERROR(INDEX(База,SMALL(IF(INDEX(База,,2)=$G$2,ROW(База)),ROW(B36))-ROW(INDEX(База,1,))+1,COUNTA($B37:B37)),\"\")","v":""},{"$f":"IFERROR(INDEX(База,SMALL(IF(INDEX(База,,2)=$G$2,ROW(База)),ROW(C36))-ROW(INDEX(База,1,))+1,COUNTA($B37:C37)),\"\")","v":""},{"$f":"IFERROR(INDEX(База,SMALL(IF(INDEX(База,,2)=$G$2,ROW(База)),ROW(D36))-ROW(INDEX(База,1,))+1,COUNTA($B37:D37)),\"\")","v":""}]
[null,{"$f":"IFERROR(INDEX(База,SMALL(IF(INDEX(База,,2)=$G$2,ROW(База)),ROW(B37))-ROW(INDEX(База,1,))+1,COUNTA($B38:B38)),\"\")","v":""},{"$f":"IFERROR(INDEX(База,SMALL(IF(INDEX(База,,2)=$G$2,ROW(База)),ROW(C37))-ROW(INDEX(База,1,))+1,COUNTA($B38:C38)),\"\")","v":""},{"$f":"IFERROR(INDEX(База,SMALL(IF(INDEX(База,,2)=$G$2,ROW(База)),ROW(D37))-ROW(INDEX(База,1,))+1,COUNTA($B38:D38)),\"\")","v":""}]
[null,{"$f":"IFERROR(INDEX(База,SMALL(IF(INDEX(База,,2)=$G$2,ROW(База)),ROW(B38))-ROW(INDEX(База,1,))+1,COUNTA($B39:B39)),\"\")","v":""},{"$f":"IFERROR(INDEX(База,SMALL(IF(INDEX(База,,2)=$G$2,ROW(База)),ROW(C38))-ROW(INDEX(База,1,))+1,COUNTA($B39:C39)),\"\")","v":""},{"$f":"IFERROR(INDEX(База,SMALL(IF(INDEX(База,,2)=$G$2,ROW(База)),ROW(D38))-ROW(INDEX(База,1,))+1,COUNTA($B39:D39)),\"\")","v":""}]
[null,{"$f":"IFERROR(INDEX(База,SMALL(IF(INDEX(База,,2)=$G$2,ROW(База)),ROW(B39))-ROW(INDEX(База,1,))+1,COUNTA($B40:B40)),\"\")","v":""},{"$f":"IFERROR(INDEX(База,SMALL(IF(INDEX(База,,2)=$G$2,ROW(База)),ROW(C39))-ROW(INDEX(База,1,))+1,COUNTA($B40:C40)),\"\")","v":""},{"$f":"IFERROR(INDEX(База,SMALL(IF(INDEX(База,,2)=$G$2,ROW(База)),ROW(D39))-ROW(INDEX(База,1,))+1,COUNTA($B40:D40)),\"\")","v":""}]
[null,{"$f":"IFERROR(INDEX(База,SMALL(IF(INDEX(База,,2)=$G$2,ROW(База)),ROW(B40))-ROW(INDEX(База,1,))+1,COUNTA($B41:B41)),\"\")","v":""},{"$f":"IFERROR(INDEX(База,SMALL(IF(INDEX(База,,2)=$G$2,ROW(База)),ROW(C40))-ROW(INDEX(База,1,))+1,COUNTA($B41:C41)),\"\")","v":""},{"$f":"IFERROR(INDEX(База,SMALL(IF(INDEX(База,,2)=$G$2,ROW(База)),ROW(D40))-ROW(INDEX(База,1,))+1,COUNTA($B41:D41)),\"\")","v":""}]
[null,{"$f":"IFERROR(INDEX(База,SMALL(IF(INDEX(База,,2)=$G$2,ROW(База)),ROW(B41))-ROW(INDEX(База,1,))+1,COUNTA($B42:B42)),\"\")","v":""},{"$f":"IFERROR(INDEX(База,SMALL(IF(INDEX(База,,2)=$G$2,ROW(База)),ROW(C41))-ROW(INDEX(База,1,))+1,COUNTA($B42:C42)),\"\")","v":""},{"$f":"IFERROR(INDEX(База,SMALL(IF(INDEX(База,,2)=$G$2,ROW(База)),ROW(D41))-ROW(INDEX(База,1,))+1,COUNTA($B42:D42)),\"\")","v":""}]
[null,{"$f":"IFERROR(INDEX(База,SMALL(IF(INDEX(База,,2)=$G$2,ROW(База)),ROW(B42))-ROW(INDEX(База,1,))+1,COUNTA($B43:B43)),\"\")","v":""},{"$f":"IFERROR(INDEX(База,SMALL(IF(INDEX(База,,2)=$G$2,ROW(База)),ROW(C42))-ROW(INDEX(База,1,))+1,COUNTA($B43:C43)),\"\")","v":""},{"$f":"IFERROR(INDEX(База,SMALL(IF(INDEX(База,,2)=$G$2,ROW(База)),ROW(D42))-ROW(INDEX(База,1,))+1,COUNTA($B43:D43)),\"\")","v":""}]
[null,{"$f":"IFERROR(INDEX(База,SMALL(IF(INDEX(База,,2)=$G$2,ROW(База)),ROW(B43))-ROW(INDEX(База,1,))+1,COUNTA($B44:B44)),\"\")","v":""},{"$f":"IFERROR(INDEX(База,SMALL(IF(INDEX(База,,2)=$G$2,ROW(База)),ROW(C43))-ROW(INDEX(База,1,))+1,COUNTA($B44:C44)),\"\")","v":""},{"$f":"IFERROR(INDEX(База,SMALL(IF(INDEX(База,,2)=$G$2,ROW(База)),ROW(D43))-ROW(INDEX(База,1,))+1,COUNTA($B44:D44)),\"\")","v":""}]
[null,{"$f":"IFERROR(INDEX(База,SMALL(IF(INDEX(База,,2)=$G$2,ROW(База)),ROW(B44))-ROW(INDEX(База,1,))+1,COUNTA($B45:B45)),\"\")","v":""},{"$f":"IFERROR(INDEX(База,SMALL(IF(INDEX(База,,2)=$G$2,ROW(База)),ROW(C44))-ROW(INDEX(База,1,))+1,COUNTA($B45:C45)),\"\")","v":""},{"$f":"IFERROR(INDEX(База,SMALL(IF(INDEX(База,,2)=$G$2,ROW(База)),ROW(D44))-ROW(INDEX(База,1,))+1,COUNTA($B45:D45)),\"\")","v":""}]
[null,{"$f":"IFERROR(INDEX(База,SMALL(IF(INDEX(База,,2)=$G$2,ROW(База)),ROW(B45))-ROW(INDEX(База,1,))+1,COUNTA($B46:B46)),\"\")","v":""},{"$f":"IFERROR(INDEX(База,SMALL(IF(INDEX(База,,2)=$G$2,ROW(База)),ROW(C45))-ROW(INDEX(База,1,))+1,COUNTA($B46:C46)),\"\")","v":""},{"$f":"IFERROR(INDEX(База,SMALL(IF(INDEX(База,,2)=$G$2,ROW(База)),ROW(D45))-ROW(INDEX(База,1,))+1,COUNTA($B46:D46)),\"\")","v":""}]
[null,{"$f":"IFERROR(INDEX(База,SMALL(IF(INDEX(База,,2)=$G$2,ROW(База)),ROW(B46))-ROW(INDEX(База,1,))+1,COUNTA($B47:B47)),\"\")","v":""},{"$f":"IFERROR(INDEX(База,SMALL(IF(INDEX(База,,2)=$G$2,ROW(База)),ROW(C46))-ROW(INDEX(База,1,))+1,COUNTA($B47:C47)),\"\")","v":""},{"$f":"IFERROR(INDEX(База,SMALL(IF(INDEX(База,,2)=$G$2,ROW(База)),ROW(D46))-ROW(INDEX(База,1,))+1,COUNTA($B47:D47)),\"\")","v":""}]
[null,{"$f":"IFERROR(INDEX(База,SMALL(IF(INDEX(База,,2)=$G$2,ROW(База)),ROW(B47))-ROW(INDEX(База,1,))+1,COUNTA($B48:B48)),\"\")","v":""},{"$f":"IFERROR(INDEX(База,SMALL(IF(INDEX(База,,2)=$G$2,ROW(База)),ROW(C47))-ROW(INDEX(База,1,))+1,COUNTA($B48:C48)),\"\")","v":""},{"$f":"IFERROR(INDEX(База,SMALL(IF(INDEX(База,,2)=$G$2,ROW(База)),ROW(D47))-ROW(INDEX(База,1,))+1,COUNTA($B48:D48)),\"\")","v":""}]
[null,{"$f":"IFERROR(INDEX(База,SMALL(IF(INDEX(База,,2)=$G$2,ROW(База)),ROW(B48))-ROW(INDEX(База,1,))+1,COUNTA($B49:B49)),\"\")","v":""},{"$f":"IFERROR(INDEX(База,SMALL(IF(INDEX(База,,2)=$G$2,ROW(База)),ROW(C48))-ROW(INDEX(База,1,))+1,COUNTA($B49:C49)),\"\")","v":""},{"$f":"IFERROR(INDEX(База,SMALL(IF(INDEX(База,,2)=$G$2,ROW(База)),ROW(D48))-ROW(INDEX(База,1,))+1,COUNTA($B49:D49)),\"\")","v":""}]
[null,{"$f":"IFERROR(INDEX(База,SMALL(IF(INDEX(База,,2)=$G$2,ROW(База)),ROW(B49))-ROW(INDEX(База,1,))+1,COUNTA($B50:B50)),\"\")","v":""},{"$f":"IFERROR(INDEX(База,SMALL(IF(INDEX(База,,2)=$G$2,ROW(База)),ROW(C49))-ROW(INDEX(База,1,))+1,COUNTA($B50:C50)),\"\")","v":""},{"$f":"IFERROR(INDEX(База,SMALL(IF(INDEX(База,,2)=$G$2,ROW(База)),ROW(D49))-ROW(INDEX(База,1,))+1,COUNTA($B50:D50)),\"\")","v":""}]
[null,{"$f":"IFERROR(INDEX(База,SMALL(IF(INDEX(База,,2)=$G$2,ROW(База)),ROW(B50))-ROW(INDEX(База,1,))+1,COUNTA($B51:B51)),\"\")","v":""},{"$f":"IFERROR(INDEX(База,SMALL(IF(INDEX(База,,2)=$G$2,ROW(База)),ROW(C50))-ROW(INDEX(База,1,))+1,COUNTA($B51:C51)),\"\")","v":""},{"$f":"IFERROR(INDEX(База,SMALL(IF(INDEX(База,,2)=$G$2,ROW(База)),ROW(D50))-ROW(INDEX(База,1,))+1,COUNTA($B51:D51)),\"\")","v":""}]
[null,{"$f":"IFERROR(INDEX(База,SMALL(IF(INDEX(База,,2)=$G$2,ROW(База)),ROW(B51))-ROW(INDEX(База,1,))+1,COUNTA($B52:B52)),\"\")","v":""},{"$f":"IFERROR(INDEX(База,SMALL(IF(INDEX(База,,2)=$G$2,ROW(База)),ROW(C51))-ROW(INDEX(База,1,))+1,COUNTA($B52:C52)),\"\")","v":""},{"$f":"IFERROR(INDEX(База,SMALL(IF(INDEX(База,,2)=$G$2,ROW(База)),ROW(D51))-ROW(INDEX(База,1,))+1,COUNTA($B52:D52)),\"\")","v":""}]
[null,{"$f":"IFERROR(INDEX(База,SMALL(IF(INDEX(База,,2)=$G$2,ROW(База)),ROW(B52))-ROW(INDEX(База,1,))+1,COUNTA($B53:B53)),\"\")","v":""},{"$f":"IFERROR(INDEX(База,SMALL(IF(INDEX(База,,2)=$G$2,ROW(База)),ROW(C52))-ROW(INDEX(База,1,))+1,COUNTA($B53:C53)),\"\")","v":""},{"$f":"IFERROR(INDEX(База,SMALL(IF(INDEX(База,,2)=$G$2,ROW(База)),ROW(D52))-ROW(INDEX(База,1,))+1,COUNTA($B53:D53)),\"\")","v":""}]
[null,{"$f":"IFERROR(INDEX(База,SMALL(IF(INDEX(База,,2)=$G$2,ROW(База)),ROW(B53))-ROW(INDEX(База,1,))+1,COUNTA($B54:B54)),\"\")","v":""},{"$f":"IFERROR(INDEX(База,SMALL(IF(INDEX(База,,2)=$G$2,ROW(База)),ROW(C53))-ROW(INDEX(База,1,))+1,COUNTA($B54:C54)),\"\")","v":""},{"$f":"IFERROR(INDEX(База,SMALL(IF(INDEX(База,,2)=$G$2,ROW(База)),ROW(D53))-ROW(INDEX(База,1,))+1,COUNTA($B54:D54)),\"\")","v":""}]
[null,{"$f":"IFERROR(INDEX(База,SMALL(IF(INDEX(База,,2)=$G$2,ROW(База)),ROW(B54))-ROW(INDEX(База,1,))+1,COUNTA($B55:B55)),\"\")","v":""},{"$f":"IFERROR(INDEX(База,SMALL(IF(INDEX(База,,2)=$G$2,ROW(База)),ROW(C54))-ROW(INDEX(База,1,))+1,COUNTA($B55:C55)),\"\")","v":""},{"$f":"IFERROR(INDEX(База,SMALL(IF(INDEX(База,,2)=$G$2,ROW(База)),ROW(D54))-ROW(INDEX(База,1,))+1,COUNTA($B55:D55)),\"\")","v":""}]
[null,{"$f":"IFERROR(INDEX(База,SMALL(IF(INDEX(База,,2)=$G$2,ROW(База)),ROW(B55))-ROW(INDEX(База,1,))+1,COUNTA($B56:B56)),\"\")","v":""},{"$f":"IFERROR(INDEX(База,SMALL(IF(INDEX(База,,2)=$G$2,ROW(База)),ROW(C55))-ROW(INDEX(База,1,))+1,COUNTA($B56:C56)),\"\")","v":""},{"$f":"IFERROR(INDEX(База,SMALL(IF(INDEX(База,,2)=$G$2,ROW(База)),ROW(D55))-ROW(INDEX(База,1,))+1,COUNTA($B56:D56)),\"\")","v":""}]
[null,{"$f":"IFERROR(INDEX(База,SMALL(IF(INDEX(База,,2)=$G$2,ROW(База)),ROW(B56))-ROW(INDEX(База,1,))+1,COUNTA($B57:B57)),\"\")","v":""},{"$f":"IFERROR(INDEX(База,SMALL(IF(INDEX(База,,2)=$G$2,ROW(База)),ROW(C56))-ROW(INDEX(База,1,))+1,COUNTA($B57:C57)),\"\")","v":""},{"$f":"IFERROR(INDEX(База,SMALL(IF(INDEX(База,,2)=$G$2,ROW(База)),ROW(D56))-ROW(INDEX(База,1,))+1,COUNTA($B57:D57)),\"\")","v":""}]
[null,{"$f":"IFERROR(INDEX(База,SMALL(IF(INDEX(База,,2)=$G$2,ROW(База)),ROW(B57))-ROW(INDEX(База,1,))+1,COUNTA($B58:B58)),\"\")","v":""},{"$f":"IFERROR(INDEX(База,SMALL(IF(INDEX(База,,2)=$G$2,ROW(База)),ROW(C57))-ROW(INDEX(База,1,))+1,COUNTA($B58:C58)),\"\")","v":""},{"$f":"IFERROR(INDEX(База,SMALL(IF(INDEX(База,,2)=$G$2,ROW(База)),ROW(D57))-ROW(INDEX(База,1,))+1,COUNTA($B58:D58)),\"\")","v":""}]
[null,{"$f":"IFERROR(INDEX(База,SMALL(IF(INDEX(База,,2)=$G$2,ROW(База)),ROW(B58))-ROW(INDEX(База,1,))+1,COUNTA($B59:B59)),\"\")","v":""},{"$f":"IFERROR(INDEX(База,SMALL(IF(INDEX(База,,2)=$G$2,ROW(База)),ROW(C58))-ROW(INDEX(База,1,))+1,COUNTA($B59:C59)),\"\")","v":""},{"$f":"IFERROR(INDEX(База,SMALL(IF(INDEX(База,,2)=$G$2,ROW(База)),ROW(D58))-ROW(INDEX(База,1,))+1,COUNTA($B59:D59)),\"\")","v":""}]
[null,{"$f":"IFERROR(INDEX(База,SMALL(IF(INDEX(База,,2)=$G$2,ROW(База)),ROW(B59))-ROW(INDEX(База,1,))+1,COUNTA($B60:B60)),\"\")","v":""},{"$f":"IFERROR(INDEX(База,SMALL(IF(INDEX(База,,2)=$G$2,ROW(База)),ROW(C59))-ROW(INDEX(База,1,))+1,COUNTA($B60:C60)),\"\")","v":""},{"$f":"IFERROR(INDEX(База,SMALL(IF(INDEX(База,,2)=$G$2,ROW(База)),ROW(D59))-ROW(INDEX(База,1,))+1,COUNTA($B60:D60)),\"\")","v":""}]

{"sheet":"Упорядоченное_расположение","index":2,"n_rows":56,"n_cols":13,"rows_kept":56,"cut":false,"hidden":false,"merged":[]}
[null,null,null,null,null,null,"Выберите холдинг",null,null,null,null,null,"Холдинг 1"]
[null,"Код ","Организация","Сроки\nпредоставления","Сумма",null,"Холдинг 1",{"$f":"COUNTIF(БД!C:C,G2)","v":54},null,null,null,null,"Холдинг 2"]
[null,{"$f":"IF(COUNTA(B$2:B2)>COUNTIF(INDEX(База,,2),$G$2),\"\",INDEX(База,MATCH($G$2,INDEX(База,,2),)+COUNTA(B$2:B2)-1,COUNTA($B2:B2)))&\"\"","v":"200"},{"$f":"IF(COUNTA(C$2:C2)>COUNTIF(INDEX(База,,2),$G$2),\"\",INDEX(База,MATCH($G$2,INDEX(База,,2),)+COUNTA(C$2:C2)-1,COUNTA($B2:C2)))&\"\"","v":"Холдинг 1"},{"$f":"IF(COUNTA(D$2:D2)>COUNTIF(INDEX(База,,2),$G$2),\"\",INDEX(База,MATCH($G$2,INDEX(База,,2),)+COUNTA(D$2:D2)-1,COUNTA($B2:D2)))&\"\"","v":"Организация 1"},43434,null,null,null,null,null,null,null,"Холдинг 3"]
[null,{"$f":"IF(COUNTA(B$2:B3)>COUNTIF(INDEX(База,,2),$G$2),\"\",INDEX(База,MATCH($G$2,INDEX(База,,2),)+COUNTA(B$2:B3)-1,COUNTA($B3:B3)))&\"\"","v":"2202"},{"$f":"IF(COUNTA(C$2:C3)>COUNTIF(INDEX(База,,2),$G$2),\"\",INDEX(База,MATCH($G$2,INDEX(База,,2),)+COUNTA(C$2:C3)-1,COUNTA($B3:C3)))&\"\"","v":"Холдинг 1"},{"$f":"IF(COUNTA(D$2:D3)>COUNTIF(INDEX(База,,2),$G$2),\"\",INDEX(База,MATCH($G$2,INDEX(База,,2),)+COUNTA(D$2:D3)-1,COUNTA($B3:D3)))&\"\"","v":"Организация 2"}]
[null,{"$f":"IF(COUNTA(B$2:B4)>COUNTIF(INDEX(База,,2),$G$2),\"\",INDEX(База,MATCH($G$2,INDEX(База,,2),)+COUNTA(B$2:B4)-1,COUNTA($B4:B4)))&\"\"","v":"2202"},{"$f":"IF(COUNTA(C$2:C4)>COUNTIF(INDEX(База,,2),$G$2),\"\",INDEX(База,MATCH($G$2,INDEX(База,,2),)+COUNTA(C$2:C4)-1,COUNTA($B4:C4)))&\"\"","v":"Холдинг 1"},{"$f":"IF(COUNTA(D$2:D4)>COUNTIF(INDEX(База,,2),$G$2),\"\",INDEX(База,MATCH($G$2,INDEX(База,,2),)+COUNTA(D$2:D4)-1,COUNTA($B4:D4)))&\"\"","v":"Организация 3"}]
[null,{"$f":"IF(COUNTA(B$2:B5)>COUNTIF(INDEX(База,,2),$G$2),\"\",INDEX(База,MATCH($G$2,INDEX(База,,2),)+COUNTA(B$2:B5)-1,COUNTA($B5:B5)))&\"\"","v":"2203"},{"$f":"IF(COUNTA(C$2:C5)>COUNTIF(INDEX(База,,2),$G$2),\"\",INDEX(База,MATCH($G$2,INDEX(База,,2),)+COUNTA(C$2:C5)-1,COUNTA($B5:C5)))&\"\"","v":"Холдинг 1"},{"$f":"IF(COUNTA(D$2:D5)>COUNTIF(INDEX(База,,2),$G$2),\"\",INDEX(База,MATCH($G$2,INDEX(База,,2),)+COUNTA(D$2:D5)-1,COUNTA($B5:D5)))&\"\"","v":"Организация 4"}]
[null,{"$f":"IF(COUNTA(B$2:B6)>COUNTIF(INDEX(База,,2),$G$2),\"\",INDEX(База,MATCH($G$2,INDEX(База,,2),)+COUNTA(B$2:B6)-1,COUNTA($B6:B6)))&\"\"","v":"2204"},{"$f":"IF(COUNTA(C$2:C6)>COUNTIF(INDEX(База,,2),$G$2),\"\",INDEX(База,MATCH($G$2,INDEX(База,,2),)+COUNTA(C$2:C6)-1,COUNTA($B6:C6)))&\"\"","v":"Холдинг 1"},{"$f":"IF(COUNTA(D$2:D6)>COUNTIF(INDEX(База,,2),$G$2),\"\",INDEX(База,MATCH($G$2,INDEX(База,,2),)+COUNTA(D$2:D6)-1,COUNTA($B6:D6)))&\"\"","v":"Организация 5"}]
[null,{"$f":"IF(COUNTA(B$2:B7)>COUNTIF(INDEX(База,,2),$G$2),\"\",INDEX(База,MATCH($G$2,INDEX(База,,2),)+COUNTA(B$2:B7)-1,COUNTA($B7:B7)))&\"\"","v":"2205"},{"$f":"IF(COUNTA(C$2:C7)>COUNTIF(INDEX(База,,2),$G$2),\"\",INDEX(База,MATCH($G$2,INDEX(База,,2),)+COUNTA(C$2:C7)-1,COUNTA($B7:C7)))&\"\"","v":"Холдинг 1"},{"$f":"IF(COUNTA(D$2:D7)>COUNTIF(INDEX(База,,2),$G$2),\"\",INDEX(База,MATCH($G$2,INDEX(База,,2),)+COUNTA(D$2:D7)-1,COUNTA($B7:D7)))&\"\"","v":"Организация 6"}]
[null,{"$f":"IF(COUNTA(B$2:B8)>COUNTIF(INDEX(База,,2),$G$2),\"\",INDEX(База,MATCH($G$2,INDEX(База,,2),)+COUNTA(B$2:B8)-1,COUNTA($B8:B8)))&\"\"","v":"2206"},{"$f":"IF(COUNTA(C$2:C8)>COUNTIF(INDEX(База,,2),$G$2),\"\",INDEX(База,MATCH($G$2,INDEX(База,,2),)+COUNTA(C$2:C8)-1,COUNTA($B8:C8)))&\"\"","v":"Холдинг 1"},{"$f":"IF(COUNTA(D$2:D8)>COUNTIF(INDEX(База,,2),$G$2),\"\",INDEX(База,MATCH($G$2,INDEX(База,,2),)+COUNTA(D$2:D8)-1,COUNTA($B8:D8)))&\"\"","v":"Организация 7"}]
[null,{"$f":"IF(COUNTA(B$2:B9)>COUNTIF(INDEX(База,,2),$G$2),\"\",INDEX(База,MATCH($G$2,INDEX(База,,2),)+COUNTA(B$2:B9)-1,COUNTA($B9:B9)))&\"\"","v":"2207"},{"$f":"IF(COUNTA(C$2:C9)>COUNTIF(INDEX(База,,2),$G$2),\"\",INDEX(База,MATCH($G$2,INDEX(База,,2),)+COUNTA(C$2:C9)-1,COUNTA($B9:C9)))&\"\"","v":"Холдинг 1"},{"$f":"IF(COUNTA(D$2:D9)>COUNTIF(INDEX(База,,2),$G$2),\"\",INDEX(База,MATCH($G$2,INDEX(База,,2),)+COUNTA(D$2:D9)-1,COUNTA($B9:D9)))&\"\"","v":"Организация 8"}]
[null,{"$f":"IF(COUNTA(B$2:B10)>COUNTIF(INDEX(База,,2),$G$2),\"\",INDEX(База,MATCH($G$2,INDEX(База,,2),)+COUNTA(B$2:B10)-1,COUNTA($B10:B10)))&\"\"","v":"2208"},{"$f":"IF(COUNTA(C$2:C10)>COUNTIF(INDEX(База,,2),$G$2),\"\",INDEX(База,MATCH($G$2,INDEX(База,,2),)+COUNTA(C$2:C10)-1,COUNTA($B10:C10)))&\"\"","v":"Холдинг 1"},{"$f":"IF(COUNTA(D$2:D10)>COUNTIF(INDEX(База,,2),$G$2),\"\",INDEX(База,MATCH($G$2,INDEX(База,,2),)+COUNTA(D$2:D10)-1,COUNTA($B10:D10)))&\"\"","v":"Организация 9"}]
[null,{"$f":"IF(COUNTA(B$2:B11)>COUNTIF(INDEX(База,,2),$G$2),\"\",INDEX(База,MATCH($G$2,INDEX(База,,2),)+COUNTA(B$2:B11)-1,COUNTA($B11:B11)))&\"\"","v":"2209"},{"$f":"IF(COUNTA(C$2:C11)>COUNTIF(INDEX(База,,2),$G$2),\"\",INDEX(База,MATCH($G$2,INDEX(База,,2),)+COUNTA(C$2:C11)-1,COUNTA($B11:C11)))&\"\"","v":"Холдинг 1"},{"$f":"IF(COUNTA(D$2:D11)>COUNTIF(INDEX(База,,2),$G$2),\"\",INDEX(База,MATCH($G$2,INDEX(База,,2),)+COUNTA(D$2:D11)-1,COUNTA($B11:D11)))&\"\"","v":"Организация 10"}]
[null,{"$f":"IF(COUNTA(B$2:B12)>COUNTIF(INDEX(База,,2),$G$2),\"\",INDEX(База,MATCH($G$2,INDEX(База,,2),)+COUNTA(B$2:B12)-1,COUNTA($B12:B12)))&\"\"","v":"2220"},{"$f":"IF(COUNTA(C$2:C12)>COUNTIF(INDEX(База,,2),$G$2),\"\",INDEX(База,MATCH($G$2,INDEX(База,,2),)+COUNTA(C$2:C12)-1,COUNTA($B12:C12)))&\"\"","v":"Холдинг 1"},{"$f":"IF(COUNTA(D$2:D12)>COUNTIF(INDEX(База,,2),$G$2),\"\",INDEX(База,MATCH($G$2,INDEX(База,,2),)+COUNTA(D$2:D12)-1,COUNTA($B12:D12)))&\"\"","v":"Организация 11"}]
[null,{"$f":"IF(COUNTA(B$2:B13)>COUNTIF(INDEX(База,,2),$G$2),\"\",INDEX(База,MATCH($G$2,INDEX(База,,2),)+COUNTA(B$2:B13)-1,COUNTA($B13:B13)))&\"\"","v":"2222"},{"$f":"IF(COUNTA(C$2:C13)>COUNTIF(INDEX(База,,2),$G$2),\"\",INDEX(База,MATCH($G$2,INDEX(База,,2),)+COUNTA(C$2:C13)-1,COUNTA($B13:C13)))&\"\"","v":"Холдинг 1"},{"$f":"IF(COUNTA(D$2:D13)>COUNTIF(INDEX(База,,2),$G$2),\"\",INDEX(База,MATCH($G$2,INDEX(База,,2),)+COUNTA(D$2:D13)-1,COUNTA($B13:D13)))&\"\"","v":"Организация 12"}]
[null,{"$f":"IF(COUNTA(B$2:B14)>COUNTIF(INDEX(База,,2),$G$2),\"\",INDEX(База,MATCH($G$2,INDEX(База,,2),)+COUNTA(B$2:B14)-1,COUNTA($B14:B14)))&\"\"","v":"2223"},{"$f":"IF(COUNTA(C$2:C14)>COUNTIF(INDEX(База,,2),$G$2),\"\",INDEX(База,MATCH($G$2,INDEX(База,,2),)+COUNTA(C$2:C14)-1,COUNTA($B14:C14)))&\"\"","v":"Холдинг 1"},{"$f":"IF(COUNTA(D$2:D14)>COUNTIF(INDEX(База,,2),$G$2),\"\",INDEX(База,MATCH($G$2,INDEX(База,,2),)+COUNTA(D$2:D14)-1,COUNTA($B14:D14)))&\"\"","v":"Организация 13"}]
[null,{"$f":"IF(COUNTA(B$2:B15)>COUNTIF(INDEX(База,,2),$G$2),\"\",INDEX(База,MATCH($G$2,INDEX(База,,2),)+COUNTA(B$2:B15)-1,COUNTA($B15:B15)))&\"\"","v":"2224"},{"$f":"IF(COUNTA(C$2:C15)>COUNTIF(INDEX(База,,2),$G$2),\"\",INDEX(База,MATCH($G$2,INDEX(База,,2),)+COUNTA(C$2:C15)-1,COUNTA($B15:C15)))&\"\"","v":"Холдинг 1"},{"$f":"IF(COUNTA(D$2:D15)>COUNTIF(INDEX(База,,2),$G$2),\"\",INDEX(База,MATCH($G$2,INDEX(База,,2),)+COUNTA(D$2:D15)-1,COUNTA($B15:D15)))&\"\"","v":"Организация 14"}]
[null,{"$f":"IF(COUNTA(B$2:B16)>COUNTIF(INDEX(База,,2),$G$2),\"\",INDEX(База,MATCH($G$2,INDEX(База,,2),)+COUNTA(B$2:B16)-1,COUNTA($B16:B16)))&\"\"","v":"2226"},{"$f":"IF(COUNTA(C$2:C16)>COUNTIF(INDEX(База,,2),$G$2),\"\",INDEX(База,MATCH($G$2,INDEX(База,,2),)+COUNTA(C$2:C16)-1,COUNTA($B16:C16)))&\"\"","v":"Холдинг 1"},{"$f":"IF(COUNTA(D$2:D16)>COUNTIF(INDEX(База,,2),$G$2),\"\",INDEX(База,MATCH($G$2,INDEX(База,,2),)+COUNTA(D$2:D16)-1,COUNTA($B16:D16)))&\"\"","v":"Организация 15"}]
[null,{"$f":"IF(COUNTA(B$2:B17)>COUNTIF(INDEX(База,,2),$G$2),\"\",INDEX(База,MATCH($G$2,INDEX(База,,2),)+COUNTA(B$2:B17)-1,COUNTA($B17:B17)))&\"\"","v":"2227"},{"$f":"IF(COUNTA(C$2:C17)>COUNTIF(INDEX(База,,2),$G$2),\"\",INDEX(База,MATCH($G$2,INDEX(База,,2),)+COUNTA(C$2:C17)-1,COUNTA($B17:C17)))&\"\"","v":"Холдинг 1"},{"$f":"IF(COUNTA(D$2:D17)>COUNTIF(INDEX(База,,2),$G$2),\"\",INDEX(База,MATCH($G$2,INDEX(База,,2),)+COUNTA(D$2:D17)-1,COUNTA($B17:D17)))&\"\"","v":"Организация 16"}]
[null,{"$f":"IF(COUNTA(B$2:B18)>COUNTIF(INDEX(База,,2),$G$2),\"\",INDEX(База,MATCH($G$2,INDEX(База,,2),)+COUNTA(B$2:B18)-1,COUNTA($B18:B18)))&\"\"","v":"2222"},{"$f":"IF(COUNTA(C$2:C18)>COUNTIF(INDEX(База,,2),$G$2),\"\",INDEX(База,MATCH($G$2,INDEX(База,,2),)+COUNTA(C$2:C18)-1,COUNTA($B18:C18)))&\"\"","v":"Холдинг 1"},{"$f":"IF(COUNTA(D$2:D18)>COUNTIF(INDEX(База,,2),$G$2),\"\",INDEX(База,MATCH($G$2,INDEX(База,,2),)+COUNTA(D$2:D18)-1,COUNTA($B18:D18)))&\"\"","v":"Организация 17"}]
[null,{"$f":"IF(COUNTA(B$2:B19)>COUNTIF(INDEX(База,,2),$G$2),\"\",INDEX(База,MATCH($G$2,INDEX(База,,2),)+COUNTA(B$2:B19)-1,COUNTA($B19:B19)))&\"\"","v":"2222"},{"$f":"IF(COUNTA(C$2:C19)>COUNTIF(INDEX(База,,2),$G$2),\"\",INDEX(База,MATCH($G$2,INDEX(База,,2),)+COUNTA(C$2:C19)-1,COUNTA($B19:C19)))&\"\"","v":"Холдинг 1"},{"$f":"IF(COUNTA(D$2:D19)>COUNTIF(INDEX(База,,2),$G$2),\"\",INDEX(База,MATCH($G$2,INDEX(База,,2),)+COUNTA(D$2:D19)-1,COUNTA($B19:D19)))&\"\"","v":"Организация 18"}]
[null,{"$f":"IF(COUNTA(B$2:B20)>COUNTIF(INDEX(База,,2),$G$2),\"\",INDEX(База,MATCH($G$2,INDEX(База,,2),)+COUNTA(B$2:B20)-1,COUNTA($B20:B20)))&\"\"","v":"2223"},{"$f":"IF(COUNTA(C$2:C20)>COUNTIF(INDEX(База,,2),$G$2),\"\",INDEX(База,MATCH($G$2,INDEX(База,,2),)+COUNTA(C$2:C20)-1,COUNTA($B20:C20)))&\"\"","v":"Холдинг 1"},{"$f":"IF(COUNTA(D$2:D20)>COUNTIF(INDEX(База,,2),$G$2),\"\",INDEX(База,MATCH($G$2,INDEX(База,,2),)+COUNTA(D$2:D20)-1,COUNTA($B20:D20)))&\"\"","v":"Организация 19"}]
[null,{"$f":"IF(COUNTA(B$2:B21)>COUNTIF(INDEX(База,,2),$G$2),\"\",INDEX(База,MATCH($G$2,INDEX(База,,2),)+COUNTA(B$2:B21)-1,COUNTA($B21:B21)))&\"\"","v":"2229"},{"$f":"IF(COUNTA(C$2:C21)>COUNTIF(INDEX(База,,2),$G$2),\"\",INDEX(База,MATCH($G$2,INDEX(База,,2),)+COUNTA(C$2:C21)-1,COUNTA($B21:C21)))&\"\"","v":"Холдинг 1"},{"$f":"IF(COUNTA(D$2:D21)>COUNTIF(INDEX(База,,2),$G$2),\"\",INDEX(База,MATCH($G$2,INDEX(База,,2),)+COUNTA(D$2:D21)-1,COUNTA($B21:D21)))&\"\"","v":"Организация 20"}]
[null,{"$f":"IF(COUNTA(B$2:B22)>COUNTIF(INDEX(База,,2),$G$2),\"\",INDEX(База,MATCH($G$2,INDEX(База,,2),)+COUNTA(B$2:B22)-1,COUNTA($B22:B22)))&\"\"","v":"2230"},{"$f":"IF(COUNTA(C$2:C22)>COUNTIF(INDEX(База,,2),$G$2),\"\",INDEX(База,MATCH($G$2,INDEX(База,,2),)+COUNTA(C$2:C22)-1,COUNTA($B22:C22)))&\"\"","v":"Холдинг 1"},{"$f":"IF(COUNTA(D$2:D22)>COUNTIF(INDEX(База,,2),$G$2),\"\",INDEX(База,MATCH($G$2,INDEX(База,,2),)+COUNTA(D$2:D22)-1,COUNTA($B22:D22)))&\"\"","v":"Организация 21"}]
[null,{"$f":"IF(COUNTA(B$2:B23)>COUNTIF(INDEX(База,,2),$G$2),\"\",INDEX(База,MATCH($G$2,INDEX(База,,2),)+COUNTA(B$2:B23)-1,COUNTA($B23:B23)))&\"\"","v":"2232"},{"$f":"IF(COUNTA(C$2:C23)>COUNTIF(INDEX(База,,2),$G$2),\"\",INDEX(База,MATCH($G$2,INDEX(База,,2),)+COUNTA(C$2:C23)-1,COUNTA($B23:C23)))&\"\"","v":"Холдинг 1"},{"$f":"IF(COUNTA(D$2:D23)>COUNTIF(INDEX(База,,2),$G$2),\"\",INDEX(База,MATCH($G$2,INDEX(База,,2),)+COUNTA(D$2:D23)-1,COUNTA($B23:D23)))&\"\"","v":"Организация 22"}]
[null,{"$f":"IF(COUNTA(B$2:B24)>COUNTIF(INDEX(База,,2),$G$2),\"\",INDEX(База,MATCH($G$2,INDEX(База,,2),)+COUNTA(B$2:B24)-1,COUNTA($B24:B24)))&\"\"","v":"2233"},{"$f":"IF(COUNTA(C$2:C24)>COUNTIF(INDEX(База,,2),$G$2),\"\",INDEX(База,MATCH($G$2,INDEX(База,,2),)+COUNTA(C$2:C24)-1,COUNTA($B24:C24)))&\"\"","v":"Холдинг 1"},{"$f":"IF(COUNTA(D$2:D24)>COUNTIF(INDEX(База,,2),$G$2),\"\",INDEX(База,MATCH($G$2,INDEX(База,,2),)+COUNTA(D$2:D24)-1,COUNTA($B24:D24)))&\"\"","v":"Организация 23"}]
[null,{"$f":"IF(COUNTA(B$2:B25)>COUNTIF(INDEX(База,,2),$G$2),\"\",INDEX(База,MATCH($G$2,INDEX(База,,2),)+COUNTA(B$2:B25)-1,COUNTA($B25:B25)))&\"\"","v":"2234"},{"$f":"IF(COUNTA(C$2:C25)>COUNTIF(INDEX(База,,2),$G$2),\"\",INDEX(База,MATCH($G$2,INDEX(База,,2),)+COUNTA(C$2:C25)-1,COUNTA($B25:C25)))&\"\"","v":"Холдинг 1"},{"$f":"IF(COUNTA(D$2:D25)>COUNTIF(INDEX(База,,2),$G$2),\"\",INDEX(База,MATCH($G$2,INDEX(База,,2),)+COUNTA(D$2:D25)-1,COUNTA($B25:D25)))&\"\"","v":"Организация 24"}]
[null,{"$f":"IF(COUNTA(B$2:B26)>COUNTIF(INDEX(База,,2),$G$2),\"\",INDEX(База,MATCH($G$2,INDEX(База,,2),)+COUNTA(B$2:B26)-1,COUNTA($B26:B26)))&\"\"","v":"2235"},{"$f":"IF(COUNTA(C$2:C26)>COUNTIF(INDEX(База,,2),$G$2),\"\",INDEX(База,MATCH($G$2,INDEX(База,,2),)+COUNTA(C$2:C26)-1,COUNTA($B26:C26)))&\"\"","v":"Холдинг 1"},{"$f":"IF(COUNTA(D$2:D26)>COUNTIF(INDEX(База,,2),$G$2),\"\",INDEX(База,MATCH($G$2,INDEX(База,,2),)+COUNTA(D$2:D26)-1,COUNTA($B26:D26)))&\"\"","v":"Организация 25"}]
[null,{"$f":"IF(COUNTA(B$2:B27)>COUNTIF(INDEX(База,,2),$G$2),\"\",INDEX(База,MATCH($G$2,INDEX(База,,2),)+COUNTA(B$2:B27)-1,COUNTA($B27:B27)))&\"\"","v":"2237"},{"$f":"IF(COUNTA(C$2:C27)>COUNTIF(INDEX(База,,2),$G$2),\"\",INDEX(База,MATCH($G$2,INDEX(База,,2),)+COUNTA(C$2:C27)-1,COUNTA($B27:C27)))&\"\"","v":"Холдинг 1"},{"$f":"IF(COUNTA(D$2:D27)>COUNTIF(INDEX(База,,2),$G$2),\"\",INDEX(База,MATCH($G$2,INDEX(База,,2),)+COUNTA(D$2:D27)-1,COUNTA($B27:D27)))&\"\"","v":"Организация 26"}]
[null,{"$f":"IF(COUNTA(B$2:B28)>COUNTIF(INDEX(База,,2),$G$2),\"\",INDEX(База,MATCH($G$2,INDEX(База,,2),)+COUNTA(B$2:B28)-1,COUNTA($B28:B28)))&\"\"","v":"2238"},{"$f":"IF(COUNTA(C$2:C28)>COUNTIF(INDEX(База,,2),$G$2),\"\",INDEX(База,MATCH($G$2,INDEX(База,,2),)+COUNTA(C$2:C28)-1,COUNTA($B28:C28)))&\"\"","v":"Холдинг 1"},{"$f":"IF(COUNTA(D$2:D28)>COUNTIF(INDEX(База,,2),$G$2),\"\",INDEX(База,MATCH($G$2,INDEX(База,,2),)+COUNTA(D$2:D28)-1,COUNTA($B28:D28)))&\"\"","v":"Организация 27"}]
[null,{"$f":"IF(COUNTA(B$2:B29)>COUNTIF(INDEX(База,,2),$G$2),\"\",INDEX(База,MATCH($G$2,INDEX(База,,2),)+COUNTA(B$2:B29)-1,COUNTA($B29:B29)))&\"\"","v":"2239"},{"$f":"IF(COUNTA(C$2:C29)>COUNTIF(INDEX(База,,2),$G$2),\"\",INDEX(База,MATCH($G$2,INDEX(База,,2),)+COUNTA(C$2:C29)-1,COUNTA($B29:C29)))&\"\"","v":"Холдинг 1"},{"$f":"IF(COUNTA(D$2:D29)>COUNTIF(INDEX(База,,2),$G$2),\"\",INDEX(База,MATCH($G$2,INDEX(База,,2),)+COUNTA(D$2:D29)-1,COUNTA($B29:D29)))&\"\"","v":"Организация 28"}]
[null,{"$f":"IF(COUNTA(B$2:B30)>COUNTIF(INDEX(База,,2),$G$2),\"\",INDEX(База,MATCH($G$2,INDEX(База,,2),)+COUNTA(B$2:B30)-1,COUNTA($B30:B30)))&\"\"","v":"2240"},{"$f":"IF(COUNTA(C$2:C30)>COUNTIF(INDEX(База,,2),$G$2),\"\",INDEX(База,MATCH($G$2,INDEX(База,,2),)+COUNTA(C$2:C30)-1,COUNTA($B30:C30)))&\"\"","v":"Холдинг 1"},{"$f":"IF(COUNTA(D$2:D30)>COUNTIF(INDEX(База,,2),$G$2),\"\",INDEX(База,MATCH($G$2,INDEX(База,,2),)+COUNTA(D$2:D30)-1,COUNTA($B30:D30)))&\"\"","v":"Организация 29"}]
[null,{"$f":"IF(COUNTA(B$2:B31)>COUNTIF(INDEX(База,,2),$G$2),\"\",INDEX(База,MATCH($G$2,INDEX(База,,2),)+COUNTA(B$2:B31)-1,COUNTA($B31:B31)))&\"\"","v":"2242"},{"$f":"IF(COUNTA(C$2:C31)>COUNTIF(INDEX(База,,2),$G$2),\"\",INDEX(База,MATCH($G$2,INDEX(База,,2),)+COUNTA(C$2:C31)-1,COUNTA($B31:C31)))&\"\"","v":"Холдинг 1"},{"$f":"IF(COUNTA(D$2:D31)>COUNTIF(INDEX(База,,2),$G$2),\"\",INDEX(База,MATCH($G$2,INDEX(База,,2),)+COUNTA(D$2:D31)-1,COUNTA($B31:D31)))&\"\"","v":"Организация 30"}]
[null,{"$f":"IF(COUNTA(B$2:B32)>COUNTIF(INDEX(База,,2),$G$2),\"\",INDEX(База,MATCH($G$2,INDEX(База,,2),)+COUNTA(B$2:B32)-1,COUNTA($B32:B32)))&\"\"","v":"2245"},{"$f":"IF(COUNTA(C$2:C32)>COUNTIF(INDEX(База,,2),$G$2),\"\",INDEX(База,MATCH($G$2,INDEX(База,,2),)+COUNTA(C$2:C32)-1,COUNTA($B32:C32)))&\"\"","v":"Холдинг 1"},{"$f":"IF(COUNTA(D$2:D32)>COUNTIF(INDEX(База,,2),$G$2),\"\",INDEX(База,MATCH($G$2,INDEX(База,,2),)+COUNTA(D$2:D32)-1,COUNTA($B32:D32)))&\"\"","v":"Организация 31"}]
[null,{"$f":"IF(COUNTA(B$2:B33)>COUNTIF(INDEX(База,,2),$G$2),\"\",INDEX(База,MATCH($G$2,INDEX(База,,2),)+COUNTA(B$2:B33)-1,COUNTA($B33:B33)))&\"\"","v":"2246"},{"$f":"IF(COUNTA(C$2:C33)>COUNTIF(INDEX(База,,2),$G$2),\"\",INDEX(База,MATCH($G$2,INDEX(База,,2),)+COUNTA(C$2:C33)-1,COUNTA($B33:C33)))&\"\"","v":"Холдинг 1"},{"$f":"IF(COUNTA(D$2:D33)>COUNTIF(INDEX(База,,2),$G$2),\"\",INDEX(База,MATCH($G$2,INDEX(База,,2),)+COUNTA(D$2:D33)-1,COUNTA($B33:D33)))&\"\"","v":"Организация 32"}]
[null,{"$f":"IF(COUNTA(B$2:B34)>COUNTIF(INDEX(База,,2),$G$2),\"\",INDEX(База,MATCH($G$2,INDEX(База,,2),)+COUNTA(B$2:B34)-1,COUNTA($B34:B34)))&\"\"","v":"2248"},{"$f":"IF(COUNTA(C$2:C34)>COUNTIF(INDEX(База,,2),$G$2),\"\",INDEX(База,MATCH($G$2,INDEX(База,,2),)+COUNTA(C$2:C34)-1,COUNTA($B34:C34)))&\"\"","v":"Холдинг 1"},{"$f":"IF(COUNTA(D$2:D34)>COUNTIF(INDEX(База,,2),$G$2),\"\",INDEX(База,MATCH($G$2,INDEX(База,,2),)+COUNTA(D$2:D34)-1,COUNTA($B34:D34)))&\"\"","v":"Организация 33"}]
[null,{"$f":"IF(COUNTA(B$2:B35)>COUNTIF(INDEX(База,,2),$G$2),\"\",INDEX(База,MATCH($G$2,INDEX(База,,2),)+COUNTA(B$2:B35)-1,COUNTA($B35:B35)))&\"\"","v":"2249"},{"$f":"IF(COUNTA(C$2:C35)>COUNTIF(INDEX(База,,2),$G$2),\"\",INDEX(База,MATCH($G$2,INDEX(База,,2),)+COUNTA(C$2:C35)-1,COUNTA($B35:C35)))&\"\"","v":"Холдинг 1"},{"$f":"IF(COUNTA(D$2:D35)>COUNTIF(INDEX(База,,2),$G$2),\"\",INDEX(База,MATCH($G$2,INDEX(База,,2),)+COUNTA(D$2:D35)-1,COUNTA($B35:D35)))&\"\"","v":"Организация 34"}]
[null,{"$f":"IF(COUNTA(B$2:B36)>COUNTIF(INDEX(База,,2),$G$2),\"\",INDEX(База,MATCH($G$2,INDEX(База,,2),)+COUNTA(B$2:B36)-1,COUNTA($B36:B36)))&\"\"","v":"2252"},{"$f":"IF(COUNTA(C$2:C36)>COUNTIF(INDEX(База,,2),$G$2),\"\",INDEX(База,MATCH($G$2,INDEX(База,,2),)+COUNTA(C$2:C36)-1,COUNTA($B36:C36)))&\"\"","v":"Холдинг 1"},{"$f":"IF(COUNTA(D$2:D36)>COUNTIF(INDEX(База,,2),$G$2),\"\",INDEX(База,MATCH($G$2,INDEX(База,,2),)+COUNTA(D$2:D36)-1,COUNTA($B36:D36)))&\"\"","v":"Организация 35"}]
[null,{"$f":"IF(COUNTA(B$2:B37)>COUNTIF(INDEX(База,,2),$G$2),\"\",INDEX(База,MATCH($G$2,INDEX(База,,2),)+COUNTA(B$2:B37)-1,COUNTA($B37:B37)))&\"\"","v":"2252"},{"$f":"IF(COUNTA(C$2:C37)>COUNTIF(INDEX(База,,2),$G$2),\"\",INDEX(База,MATCH($G$2,INDEX(База,,2),)+COUNTA(C$2:C37)-1,COUNTA($B37:C37)))&\"\"","v":"Холдинг 1"},{"$f":"IF(COUNTA(D$2:D37)>COUNTIF(INDEX(База,,2),$G$2),\"\",INDEX(База,MATCH($G$2,INDEX(База,,2),)+COUNTA(D$2:D37)-1,COUNTA($B37:D37)))&\"\"","v":"Организация 36"}]
[null,{"$f":"IF(COUNTA(B$2:B38)>COUNTIF(INDEX(База,,2),$G$2),\"\",INDEX(База,MATCH($G$2,INDEX(База,,2),)+COUNTA(B$2:B38)-1,COUNTA($B38:B38)))&\"\"","v":"2253"},{"$f":"IF(COUNTA(C$2:C38)>COUNTIF(INDEX(База,,2),$G$2),\"\",INDEX(База,MATCH($G$2,INDEX(База,,2),)+COUNTA(C$2:C38)-1,COUNTA($B38:C38)))&\"\"","v":"Холдинг 1"},{"$f":"IF(COUNTA(D$2:D38)>COUNTIF(INDEX(База,,2),$G$2),\"\",INDEX(База,MATCH($G$2,INDEX(База,,2),)+COUNTA(D$2:D38)-1,COUNTA($B38:D38)))&\"\"","v":"Организация 37"}]
[null,{"$f":"IF(COUNTA(B$2:B39)>COUNTIF(INDEX(База,,2),$G$2),\"\",INDEX(База,MATCH($G$2,INDEX(База,,2),)+COUNTA(B$2:B39)-1,COUNTA($B39:B39)))&\"\"","v":"2254"},{"$f":"IF(COUNTA(C$2:C39)>COUNTIF(INDEX(База,,2),$G$2),\"\",INDEX(База,MATCH($G$2,INDEX(База,,2),)+COUNTA(C$2:C39)-1,COUNTA($B39:C39)))&\"\"","v":"Холдинг 1"},{"$f":"IF(COUNTA(D$2:D39)>COUNTIF(INDEX(База,,2),$G$2),\"\",INDEX(База,MATCH($G$2,INDEX(База,,2),)+COUNTA(D$2:D39)-1,COUNTA($B39:D39)))&\"\"","v":"Организация 38"}]
[null,{"$f":"IF(COUNTA(B$2:B40)>COUNTIF(INDEX(База,,2),$G$2),\"\",INDEX(База,MATCH($G$2,INDEX(База,,2),)+COUNTA(B$2:B40)-1,COUNTA($B40:B40)))&\"\"","v":"2255"},{"$f":"IF(COUNTA(C$2:C40)>COUNTIF(INDEX(База,,2),$G$2),\"\",INDEX(База,MATCH($G$2,INDEX(База,,2),)+COUNTA(C$2:C40)-1,COUNTA($B40:C40)))&\"\"","v":"Холдинг 1"},{"$f":"IF(COUNTA(D$2:D40)>COUNTIF(INDEX(База,,2),$G$2),\"\",INDEX(База,MATCH($G$2,INDEX(База,,2),)+COUNTA(D$2:D40)-1,COUNTA($B40:D40)))&\"\"","v":"Организация 39"}]
[null,{"$f":"IF(COUNTA(B$2:B41)>COUNTIF(INDEX(База,,2),$G$2),\"\",INDEX(База,MATCH($G$2,INDEX(База,,2),)+COUNTA(B$2:B41)-1,COUNTA($B41:B41)))&\"\"","v":"2256"},{"$f":"IF(COUNTA(C$2:C41)>COUNTIF(INDEX(База,,2),$G$2),\"\",INDEX(База,MATCH($G$2,INDEX(База,,2),)+COUNTA(C$2:C41)-1,COUNTA($B41:C41)))&\"\"","v":"Холдинг 1"},{"$f":"IF(COUNTA(D$2:D41)>COUNTIF(INDEX(База,,2),$G$2),\"\",INDEX(База,MATCH($G$2,INDEX(База,,2),)+COUNTA(D$2:D41)-1,COUNTA($B41:D41)))&\"\"","v":"Организация 40"}]
[null,{"$f":"IF(COUNTA(B$2:B42)>COUNTIF(INDEX(База,,2),$G$2),\"\",INDEX(База,MATCH($G$2,INDEX(База,,2),)+COUNTA(B$2:B42)-1,COUNTA($B42:B42)))&\"\"","v":"2266"},{"$f":"IF(COUNTA(C$2:C42)>COUNTIF(INDEX(База,,2),$G$2),\"\",INDEX(База,MATCH($G$2,INDEX(База,,2),)+COUNTA(C$2:C42)-1,COUNTA($B42:C42)))&\"\"","v":"Холдинг 1"},{"$f":"IF(COUNTA(D$2:D42)>COUNTIF(INDEX(База,,2),$G$2),\"\",INDEX(База,MATCH($G$2,INDEX(База,,2),)+COUNTA(D$2:D42)-1,COUNTA($B42:D42)))&\"\"","v":"Организация 41"}]
[null,{"$f":"IF(COUNTA(B$2:B43)>COUNTIF(INDEX(База,,2),$G$2),\"\",INDEX(База,MATCH($G$2,INDEX(База,,2),)+COUNTA(B$2:B43)-1,COUNTA($B43:B43)))&\"\"","v":"2269"},{"$f":"IF(COUNTA(C$2:C43)>COUNTIF(INDEX(База,,2),$G$2),\"\",INDEX(База,MATCH($G$2,INDEX(База,,2),)+COUNTA(C$2:C43)-1,COUNTA($B43:C43)))&\"\"","v":"Холдинг 1"},{"$f":"IF(COUNTA(D$2:D43)>COUNTIF(INDEX(База,,2),$G$2),\"\",INDEX(База,MATCH($G$2,INDEX(База,,2),)+COUNTA(D$2:D43)-1,COUNTA($B43:D43)))&\"\"","v":"Организация 42"}]
[null,{"$f":"IF(COUNTA(B$2:B44)>COUNTIF(INDEX(База,,2),$G$2),\"\",INDEX(База,MATCH($G$2,INDEX(База,,2),)+COUNTA(B$2:B44)-1,COUNTA($B44:B44)))&\"\"","v":"2270"},{"$f":"IF(COUNTA(C$2:C44)>COUNTIF(INDEX(База,,2),$G$2),\"\",INDEX(База,MATCH($G$2,INDEX(База,,2),)+COUNTA(C$2:C44)-1,COUNTA($B44:C44)))&\"\"","v":"Холдинг 1"},{"$f":"IF(COUNTA(D$2:D44)>COUNTIF(INDEX(База,,2),$G$2),\"\",INDEX(База,MATCH($G$2,INDEX(База,,2),)+COUNTA(D$2:D44)-1,COUNTA($B44:D44)))&\"\"","v":"Организация 43"}]
[null,{"$f":"IF(COUNTA(B$2:B45)>COUNTIF(INDEX(База,,2),$G$2),\"\",INDEX(База,MATCH($G$2,INDEX(База,,2),)+COUNTA(B$2:B45)-1,COUNTA($B45:B45)))&\"\"","v":"2272"},{"$f":"IF(COUNTA(C$2:C45)>COUNTIF(INDEX(База,,2),$G$2),\"\",INDEX(База,MATCH($G$2,INDEX(База,,2),)+COUNTA(C$2:C45)-1,COUNTA($B45:C45)))&\"\"","v":"Холдинг 1"},{"$f":"IF(COUNTA(D$2:D45)>COUNTIF(INDEX(База,,2),$G$2),\"\",INDEX(База,MATCH($G$2,INDEX(База,,2),)+COUNTA(D$2:D45)-1,COUNTA($B45:D45)))&\"\"","v":"Организация 44"}]
[null,{"$f":"IF(COUNTA(B$2:B46)>COUNTIF(INDEX(База,,2),$G$2),\"\",INDEX(База,MATCH($G$2,INDEX(База,,2),)+COUNTA(B$2:B46)-1,COUNTA($B46:B46)))&\"\"","v":"2274"},{"$f":"IF(COUNTA(C$2:C46)>COUNTIF(INDEX(База,,2),$G$2),\"\",INDEX(База,MATCH($G$2,INDEX(База,,2),)+COUNTA(C$2:C46)-1,COUNTA($B46:C46)))&\"\"","v":"Холдинг 1"},{"$f":"IF(COUNTA(D$2:D46)>COUNTIF(INDEX(База,,2),$G$2),\"\",INDEX(База,MATCH($G$2,INDEX(База,,2),)+COUNTA(D$2:D46)-1,COUNTA($B46:D46)))&\"\"","v":"Организация 45"}]
[null,{"$f":"IF(COUNTA(B$2:B47)>COUNTIF(INDEX(База,,2),$G$2),\"\",INDEX(База,MATCH($G$2,INDEX(База,,2),)+COUNTA(B$2:B47)-1,COUNTA($B47:B47)))&\"\"","v":"2276"},{"$f":"IF(COUNTA(C$2:C47)>COUNTIF(INDEX(База,,2),$G$2),\"\",INDEX(База,MATCH($G$2,INDEX(База,,2),)+COUNTA(C$2:C47)-1,COUNTA($B47:C47)))&\"\"","v":"Холдинг 1"},{"$f":"IF(COUNTA(D$2:D47)>COUNTIF(INDEX(База,,2),$G$2),\"\",INDEX(База,MATCH($G$2,INDEX(База,,2),)+COUNTA(D$2:D47)-1,COUNTA($B47:D47)))&\"\"","v":"Организация 46"}]
[null,{"$f":"IF(COUNTA(B$2:B48)>COUNTIF(INDEX(База,,2),$G$2),\"\",INDEX(База,MATCH($G$2,INDEX(База,,2),)+COUNTA(B$2:B48)-1,COUNTA($B48:B48)))&\"\"","v":"2277"},{"$f":"IF(COUNTA(C$2:C48)>COUNTIF(INDEX(База,,2),$G$2),\"\",INDEX(База,MATCH($G$2,INDEX(База,,2),)+COUNTA(C$2:C48)-1,COUNTA($B48:C48)))&\"\"","v":"Холдинг 1"},{"$f":"IF(COUNTA(D$2:D48)>COUNTIF(INDEX(База,,2),$G$2),\"\",INDEX(База,MATCH($G$2,INDEX(База,,2),)+COUNTA(D$2:D48)-1,COUNTA($B48:D48)))&\"\"","v":"Организация 47"}]
[null,{"$f":"IF(COUNTA(B$2:B49)>COUNTIF(INDEX(База,,2),$G$2),\"\",INDEX(База,MATCH($G$2,INDEX(База,,2),)+COUNTA(B$2:B49)-1,COUNTA($B49:B49)))&\"\"","v":"2278"},{"$f":"IF(COUNTA(C$2:C49)>COUNTIF(INDEX(База,,2),$G$2),\"\",INDEX(База,MATCH($G$2,INDEX(База,,2),)+COUNTA(C$2:C49)-1,COUNTA($B49:C49)))&\"\"","v":"Холдинг 1"},{"$f":"IF(COUNTA(D$2:D49)>COUNTIF(INDEX(База,,2),$G$2),\"\",INDEX(База,MATCH($G$2,INDEX(База,,2),)+COUNTA(D$2:D49)-1,COUNTA($B49:D49)))&\"\"","v":"Организация 48"}]
[null,{"$f":"IF(COUNTA(B$2:B50)>COUNTIF(INDEX(База,,2),$G$2),\"\",INDEX(База,MATCH($G$2,INDEX(База,,2),)+COUNTA(B$2:B50)-1,COUNTA($B50:B50)))&\"\"","v":"2279"},{"$f":"IF(COUNTA(C$2:C50)>COUNTIF(INDEX(База,,2),$G$2),\"\",INDEX(База,MATCH($G$2,INDEX(База,,2),)+COUNTA(C$2:C50)-1,COUNTA($B50:C50)))&\"\"","v":"Холдинг 1"},{"$f":"IF(COUNTA(D$2:D50)>COUNTIF(INDEX(База,,2),$G$2),\"\",INDEX(База,MATCH($G$2,INDEX(База,,2),)+COUNTA(D$2:D50)-1,COUNTA($B50:D50)))&\"\"","v":"Организация 49"}]
[null,{"$f":"IF(COUNTA(B$2:B51)>COUNTIF(INDEX(База,,2),$G$2),\"\",INDEX(База,MATCH($G$2,INDEX(База,,2),)+COUNTA(B$2:B51)-1,COUNTA($B51:B51)))&\"\"","v":"2280"},{"$f":"IF(COUNTA(C$2:C51)>COUNTIF(INDEX(База,,2),$G$2),\"\",INDEX(База,MATCH($G$2,INDEX(База,,2),)+COUNTA(C$2:C51)-1,COUNTA($B51:C51)))&\"\"","v":"Холдинг 1"},{"$f":"IF(COUNTA(D$2:D51)>COUNTIF(INDEX(База,,2),$G$2),\"\",INDEX(База,MATCH($G$2,INDEX(База,,2),)+COUNTA(D$2:D51)-1,COUNTA($B51:D51)))&\"\"","v":"Организация 50"}]
[null,{"$f":"IF(COUNTA(B$2:B52)>COUNTIF(INDEX(База,,2),$G$2),\"\",INDEX(База,MATCH($G$2,INDEX(База,,2),)+COUNTA(B$2:B52)-1,COUNTA($B52:B52)))&\"\"","v":"2283"},{"$f":"IF(COUNTA(C$2:C52)>COUNTIF(INDEX(База,,2),$G$2),\"\",INDEX(База,MATCH($G$2,INDEX(База,,2),)+COUNTA(C$2:C52)-1,COUNTA($B52:C52)))&\"\"","v":"Холдинг 1"},{"$f":"IF(COUNTA(D$2:D52)>COUNTIF(INDEX(База,,2),$G$2),\"\",INDEX(База,MATCH($G$2,INDEX(База,,2),)+COUNTA(D$2:D52)-1,COUNTA($B52:D52)))&\"\"","v":"Организация 51"}]
[null,{"$f":"IF(COUNTA(B$2:B53)>COUNTIF(INDEX(База,,2),$G$2),\"\",INDEX(База,MATCH($G$2,INDEX(База,,2),)+COUNTA(B$2:B53)-1,COUNTA($B53:B53)))&\"\"","v":"2284"},{"$f":"IF(COUNTA(C$2:C53)>COUNTIF(INDEX(База,,2),$G$2),\"\",INDEX(База,MATCH($G$2,INDEX(База,,2),)+COUNTA(C$2:C53)-1,COUNTA($B53:C53)))&\"\"","v":"Холдинг 1"},{"$f":"IF(COUNTA(D$2:D53)>COUNTIF(INDEX(База,,2),$G$2),\"\",INDEX(База,MATCH($G$2,INDEX(База,,2),)+COUNTA(D$2:D53)-1,COUNTA($B53:D53)))&\"\"","v":"Организация 52"}]
[null,{"$f":"IF(COUNTA(B$2:B54)>COUNTIF(INDEX(База,,2),$G$2),\"\",INDEX(База,MATCH($G$2,INDEX(База,,2),)+COUNTA(B$2:B54)-1,COUNTA($B54:B54)))&\"\"","v":"2297"},{"$f":"IF(COUNTA(C$2:C54)>COUNTIF(INDEX(База,,2),$G$2),\"\",INDEX(База,MATCH($G$2,INDEX(База,,2),)+COUNTA(C$2:C54)-1,COUNTA($B54:C54)))&\"\"","v":"Холдинг 1"},{"$f":"IF(COUNTA(D$2:D54)>COUNTIF(INDEX(База,,2),$G$2),\"\",INDEX(База,MATCH($G$2,INDEX(База,,2),)+COUNTA(D$2:D54)-1,COUNTA($B54:D54)))&\"\"","v":"Организация 53"}]
[null,{"$f":"IF(COUNTA(B$2:B55)>COUNTIF(INDEX(База,,2),$G$2),\"\",INDEX(База,MATCH($G$2,INDEX(База,,2),)+COUNTA(B$2:B55)-1,COUNTA($B55:B55)))&\"\"","v":"2299"},{"$f":"IF(COUNTA(C$2:C55)>COUNTIF(INDEX(База,,2),$G$2),\"\",INDEX(База,MATCH($G$2,INDEX(База,,2),)+COUNTA(C$2:C55)-1,COUNTA($B55:C55)))&\"\"","v":"Холдинг 1"},{"$f":"IF(COUNTA(D$2:D55)>COUNTIF(INDEX(База,,2),$G$2),\"\",INDEX(База,MATCH($G$2,INDEX(База,,2),)+COUNTA(D$2:D55)-1,COUNTA($B55:D55)))&\"\"","v":"Организация 54"}]